[Event "21st IPCA World Championship 2022"]
[Site "Ashdod"]
[Date "2022.05.13"]
[Round "5.1"]
[White "Obodchuk, Andrei"]
[Black "Gurbanov, Andrei"]
[Result "0-1"]
[ECO "C47"]
[WhiteElo "2295"]
[BlackElo "2302"]
[Annotator "TA"]
[PlyCount "120"]
[EventDate "2022.05.09"]
[EventType "swiss"]
[EventCountry "ISR"]
[SourceTitle "playchess.com"]
[Source "ChessBase"]
[SourceQuality "1"]
[TimeControl "5400+30"]

{[%evp 17,120,6,3,0,0,-5,8,0,44,29,130,70,123,112,122,137,175,99,97,41,35,50,40,47,56,33,51,47,157,127,674,663,821,820,815,809,807,807,730,158,154,150,151,145,137,149,158,144,199,104,96,66,48,0,0,-527,-541,-547,-531,-524,-514,-593,-591,-579,-575,-554,-534,-606,-592,-827,-845,-814,-784,-771,-735,-876,-861,-5535,-5085,-5281,-4876,-2424,-1906,-29954,-29954,-2182,-12395,-29972,-29973,-29965,-29974,-29982,-3431,-1414,0,-29982,-1151,-29978,-29979,-29989,-29990,-29990,-29986,-29984,-29983]} 1. e4 {[%emt 0:00:15]} e5 {[%emt 0:00:06]} 2. Nf3 {[%emt 0:00:06]} Nc6 {[%emt 0:00:03]} 3. Nc3 {[%emt 0:01:00]} Nf6 {[%emt 0:05:24]} 4. d4 {[%emt 0:00:15]} exd4 {[%emt 0:00:05]} 5. Nxd4 {[%emt 0:00:06]} Bb4 {[%emt 0:00:12]} 6. Nxc6 {[%emt 0:00:08]} bxc6 {[%emt 0:00:06]} 7. Bd3 {[%emt 0:00:16]} d5 {[%emt 0:01:15]} 8. exd5 {[%emt 0:00:26]} cxd5 {[%emt 0:00:08] 8...0-0 injects fresh life into this line.} 9. O-O {[%emt 0:00:17]} O-O {[%emt 0:00:17]} 10. h3 {[%emt 0:00:13] Inhibits Bg4. C47: Scotch Four Knights and Four Knights with 4 g3.} Be6 {[%emt 0:03:49]} 11. Qf3 {[%emt 0:01:11]} Rb8 {[%emt 0:00:34]} 12. Bf4 {[%emt 0:03:15] [#] The position is equal.} Be7 $146 {[%emt 0:02:41]} ({Predecessor:} 12... Bd6 13. b3 Rb4 14. Ne2 h6 15. Rad1 c5 16. Rfe1 Re8 17. c3 Rb7 18. c4 Rd7 19. Bxd6 Rxd6 {½-½ (38) Xiong,J (2709)-Fedoseev,V (2674) Chess.com INT 2020}) 13. b3 {[%emt 0:00:24]} d4 {[%emt 0:04:22]} (13... Bd6 $11) 14. Ne4 {[%emt 0:02:37]} (14. Nb5 $1 $16) 14... Nd5 {[%emt 0:00:14]} ({Black should try} 14... Nxe4 $14 15. Qxe4 g6) 15. Be5 $16 {[%emt 0:02:27]} f5 {[%emt 0:07:05]} 16. Ng3 $40 {[%emt 0:00:43][%mdl 128] White is out for blood.} g6 {[%emt 0:09:54]} 17. Bc4 {[%emt 0:02:40]} (17. Ne2 $18) 17... Bf6 {[%emt 0:05:04]} 18. Rae1 {[%emt 0:00:49]} (18. Rfe1 $1 $16 {aiming for Bxf6.} Bf7 19. Bxd5 Bxd5 20. Qf4) 18... Bf7 $1 $14 {[%emt 0:00:37]} 19. Bxd5 {[%emt 0:11:19]} Bxd5 {[%emt 0:00:48]} 20. Qf4 {[%emt 0:00:24][%csl LRc7,LRd4]} Ba8 {[%emt 0:04:03]} 21. Bxc7 {[%emt 0:13:13]} Qd5 {[%emt 0:00:30][%csl Ga8][%cal Rd5g2]} 22. f3 {[%emt 0:00:11]} Rbc8 {[%emt 0:04:39]} (22... Rbe8 $14) 23. Be5 $1 $16 {[%emt 0:02:19]} Rxc2 $2 {[%emt 0:13:16][%mdl 8192]} (23... Be7 $16) 24. Bxf6 $18 {[%emt 0:00:24]} Rxf6 {[%emt 0:00:01]} 25. Re8+ {[%emt 0:01:56]} Rf8 {[%emt 0:03:01]} 26. Rxf8+ {[%emt 0:11:53]} Kxf8 {[%emt 0:00:03]} 27. Re1 $1 {[%emt 0:00:26] White threatens Qh6+ and mate.} Qd7 {[%emt 0:07:34] [#]} 28. Qe5 $2 {[%emt 0:05:37]} (28. Nxf5 $1 $18 {[%mdl 512] has better winning chances. Threatening mate with Qh6+.} gxf5 29. Qh6+ Kg8 30. Qg5+ Kf8 31. Qf6+ Kg8 32. Re7 Qxe7 33. Qxe7) 28... Bd5 $16 {[%emt 0:02:59]} 29. Rd1 {[%emt 0:00:39]} Qc7 {[%emt 0:09:24]} 30. Qh8+ {[%emt 0:06:36]} Bg8 {[%emt 0:03:11]} 31. Qf6+ {[%emt 0:00:08]} ({Don't do} 31. Qxd4 $6 Qb6 $14) 31... Bf7 {[%emt 0:01:39]} 32. Rxd4 {[%emt 0:01:21]} Ke8 {[%emt 0:00:56] Prevents Rd8+.} (32... Qb6 $16 {keeps fighting.} 33. Qh8+ Ke7) 33. Nf1 {[%emt 0:09:51]} (33. Rd6 $18) 33... Rxa2 {[%emt 0:00:35]} 34. Qh8+ {[%emt 0:00:31]} Ke7 {[%emt 0:00:02]} 35. Rd3 {[%emt 0:01:13]} (35. Qxh7 $14 Ke6 36. Qh4) 35... Re2 $1 $11 {[%emt 0:01:57]} 36. Re3+ $2 {[%emt 0:05:53][%mdl 8192] Black keeps a firm grip on the game.} ({Avoid the trap} 36. Qxh7 $2 Qb6+ 37. Ne3 (37. Kh1 $2 Qf2 $19) 37... Rxe3 $19) (36. Rd1 $11 {and White has nothing to worry.}) 36... Rxe3 $19 {[%emt 0:01:24]} 37. Nxe3 {[%emt 0:00:02]} Qc5 {[%emt 0:00:13]} 38. Qxh7 {[%emt 0:01:13]} Qxe3+ {[%emt 0:00:12][%mdl 4096] Endgame} 39. Kh2 {[%emt 0:00:16]} Qxb3 {[%emt 0:01:24]} 40. Qh4+ {[%emt 0:00:06]} Ke6 {[%emt 0:00:33]} 41. Qe1+ {[%emt 0:00:28]} Kd7 {[%emt 0:00:17]} 42. Qa1 {[%emt 0:01:32]} Qb6 {[%emt 0:00:41]} 43. f4 {[%emt 0:00:20]} a5 {[%emt 0:01:10]} 44. Qg7 {[%emt 0:00:07]} Qe6 {[%emt 0:00:40]} 45. Qd4+ {[%emt 0:01:40]} Qd5 {[%emt 0:00:07]} 46. Qb6 {[%emt 0:00:34]} Ke7 {[%emt 0:00:14]} 47. h4 {[%emt 0:00:12]} Be8 {[%emt 0:01:38] Threatens to win with ...Bc6.} 48. Qe3+ {[%emt 0:00:47]} Kf8 {[%emt 0:00:18]} 49. Qc3 {[%emt 0:00:20]} a4 {[%emt 0:00:41]} 50. h5 {[%emt 0:00:24]} gxh5 {[%emt 0:00:15]} 51. Qf6+ {[%emt 0:00:24]} Bf7 {[%emt 0:00:09] ( -> ...a3)} 52. Qh8+ {[%emt 0:00:45]} Ke7 {[%emt 0:00:05]} 53. Qb8 {[%emt 0:00:14]} Qe4 {[%emt 0:00:32]} 54. Kg3 {[%emt 0:00:15]} Qe1+ {[%emt 0:00:59]} (54... Qe3+ $142 55. Kh4 a3 56. Qb7+ Kf8 57. Kg5 Qe7+ 58. Qxe7+ Kxe7 59. Kxf5 a2 60. Ke4 a1=Q 61. Ke3 Qc3+ 62. Ke2 h4 63. Kf2 Bc4 64. f5 Qg3+ 65. Kg1 h3 66. f6+ Kxf6 67. Kh1 Qxg2#) 55. Kh2 {[%emt 0:00:27]} Qe4 {[%emt 0:01:42]} 56. Kg3 $1 {[%emt 0:00:22]} Be8 {[%emt 0:01:34]} (56... Qe3+ $142 57. Kh4 a3 58. Qb7+ Kf8 59. Qd7 Kg7 60. Qa4 a2 61. Qa5 Qxf4+ 62. Kh3 {[#]} Bd5 $1 {[%mdl 512]} 63. Qc3+ Kg6 64. Qg3+ Qxg3+ 65. Kxg3 a1=Q 66. Kf2 Qd4+ 67. Ke2 Bxg2 68. Ke1 Qb2 69. Kd1 Bf3+ 70. Ke1 Qe2#) 57. Kh4 {[%emt 0:01:15]} Kf8 {[%emt 0:01:02] Black mates.} 58. Kg5 {[%emt 0:01:29]} Qe7+ {[%emt 0:00:48]} 59. Kxf5 {[%emt 0:00:13]} Kg7 {[%emt 0:00:02][%csl Gg7][%cal Re8g6]} 60. Qb2+ {[%emt 0:00:43]} Kh7 {[%emt 0:00:01] Weighted Error Value: White=0.64/Black=0.40} 0-1

[Event "21st IPCA World Championship 2022"]
[Site "Ashdod"]
[Date "2022.05.13"]
[Round "5.2"]
[White "Yarmonov, Igor"]
[Black "Babanov, Aleksandr"]
[Result "1-0"]
[ECO "D13"]
[WhiteElo "2394"]
[BlackElo "1929"]
[Annotator "TA"]
[PlyCount "127"]
[EventDate "2022.05.09"]
[EventType "swiss"]
[EventCountry "ISR"]
[SourceTitle "playchess.com"]
[Source "ChessBase"]
[SourceQuality "1"]
[TimeControl "5400+30"]

{[%evp 13,127,22,39,24,14,16,16,11,10,2,2,3,77,67,90,94,104,118,103,91,103,96,112,104,158,48,49,47,66,41,47,39,59,45,84,77,133,123,283,273,291,293,286,179,422,425,415,399,399,393,375,391,513,512,473,485,584,586,586,585,584,584,579,572,564,556,584,502,494,444,645,629,948,948,914,885,1069,941,1076,1044,965,928,935,945,1051,1059,1085,1079,1033,1029,1048,1025,960,952,1016,1028,855,818,1490,992,2051,2020,1435,1159,1708,1644,1543,2046,29974,29974,5022,2879,29977,29978,29971,12664]} 1. d4 {[%emt 0:00:04]} d5 {[%emt 0:00:26]} 2. c4 {[%emt 0:00:05]} c6 {[%emt 0:00:22]} 3. Nf3 {[%emt 0:00:05]} Nf6 {[%emt 0:00:21]} 4. cxd5 {[%emt 0:00:30]} cxd5 {[%emt 0:00:20]} 5. Nc3 {[%emt 0:00:04]} e6 {[%emt 0:03:12]} 6. Bf4 {[%emt 0:00:17]} Nc6 {[%emt 0:04:37] 6...Be7 is becoming the main line.} 7. e3 {[%emt 0:00:38]} Bb4 {[%emt 0:08:30]} 8. a3 {[%emt 0:00:19] D13: Slav Defence: Exchange variation without ...Bf5.} Bxc3+ {[%emt 0:00:12]} 9. bxc3 {[%emt 0:00:21]} Qa5 {[%emt 0:01:30]} 10. Qb3 {[%emt 0:00:35] The position is equal.} Ne4 {[%emt 0:00:56]} 11. Rc1 {[%emt 0:00:11]} O-O {[%emt 0:02:27]} 12. Bd3 {[%emt 0:00:07]} Nf6 {[%emt 0:06:06]} (12... b6 $11) 13. O-O $16 {[%emt 0:00:14]} Nh5 {[%emt 0:03:31] [#]} 14. Be5 $146 {[%emt 0:11:48]} ({Predecessor:} 14. Bd6 Re8 15. h3 Qd8 16. Bh2 b6 17. Bb5 Na5 18. Qd1 Bd7 19. Bxd7 Qxd7 20. Ne5 {1-0 (32) Kovalenko,Y-Lukach,M Lvov 2003}) 14... Nxe5 {[%emt 0:07:25]} 15. dxe5 {[%emt 0:00:04] [#] Threatens to win with g4.} g6 {[%emt 0:00:32]} 16. c4 {[%emt 0:00:22]} Rb8 {[%emt 0:08:46]} 17. cxd5 {[%emt 0:00:49]} exd5 {[%emt 0:01:09]} 18. Nd4 {[%emt 0:00:40][%cal Od4c6]} Ng7 {[%emt 0:04:38] [#]} ({Black should play} 18... Be6) 19. Rc3 {[%emt 0:05:27] White is much more active. The black rooks are badly placed.} ({White should try} 19. Nc6 $1 $16 {[%cal Rc6a5][%mdl 512]} bxc6 20. Qxb8) 19... Bd7 $14 {[%emt 0:10:03]} 20. Rfc1 {[%emt 0:00:56]} Rfc8 {[%emt 0:05:09] Prevents Rc5.} 21. Bb5 {[%emt 0:34:09]} Rxc3 {[%emt 0:05:53]} 22. Rxc3 {[%emt 0:03:50]} Be6 {[%emt 0:07:22]} 23. h3 {[%emt 0:01:18]} h5 {[%emt 0:00:54]} 24. Be2 {[%emt 0:02:19][%cal Od4c6,Bb5e2,Be2f3,Bf3d5][%mdl 32] And now Nc6! would win.} Bd7 {[%emt 0:01:50] Against Nc6} (24... Re8 $142) 25. Bf3 $16 {[%emt 0:00:48]} Rd8 $2 {[%emt 0:02:52] Loses the game.} (25... Rc8 $16 26. Rxc8+ (26. Qxb7 Rxc3 27. Qxd7 Qc7 $15) 26... Bxc8) 26. Bxd5 $18 {[%emt 0:04:38]} Be8 {[%emt 0:03:02]} 27. e4 {[%emt 0:04:09]} ({Less strong is} 27. Bxb7 Rb8 $16) 27... h4 {[%emt 0:02:48]} 28. Qb4 {[%emt 0:03:48]} Rxd5 {[%emt 0:03:12]} (28... Qxb4 {was necessary.} 29. axb4 Nh5) 29. exd5 {[%emt 0:00:47]} Qxd5 {[%emt 0:00:05]} 30. Rc5 {[%emt 0:02:43]} Qe4 {[%emt 0:01:07]} 31. Nf3 {[%emt 0:00:10]} ({Resist} 31. Rc8 a5 32. Qd6 Qe1+ 33. Kh2 Qxf2 $18) 31... Qxb4 {[%emt 0:02:52]} 32. axb4 {[%emt 0:00:04][%mdl 4096] Endgame KRN-KBN} b6 {[%emt 0:02:16]} 33. Rc8 {[%emt 0:00:23][%cal Bc5c8,Bc8b8,Bb8b6][%mdl 32]} Kf8 {[%emt 0:00:59]} 34. Nxh4 {[%emt 0:01:00]} a5 {[%emt 0:00:19]} 35. Rb8 {[%emt 0:00:35]} axb4 {[%emt 0:01:08]} 36. Rxb6 {[%emt 0:00:07]} b3 {[%emt 0:00:35]} 37. Rxb3 {[%emt 0:00:07]} Ne6 {[%emt 0:00:11]} 38. Nf3 {[%emt 0:00:31]} Bc6 {[%emt 0:00:29]} 39. h4 {[%emt 0:00:22]} Bd5 {[%emt 0:00:25]} 40. Rb8+ {[%emt 0:01:01]} Ke7 {[%emt 0:00:40]} 41. Ng5 {[%emt 0:00:04]} Nf4 {[%emt 0:00:46]} (41... Nxg5 $142 42. hxg5 Ke6) 42. g3 {[%emt 0:00:24]} Nd3 {[%emt 0:00:39]} 43. f4 {[%emt 0:00:13]} Kd7 {[%emt 0:00:40]} 44. Rb1 {[%emt 0:00:47]} Ke7 {[%emt 0:00:34]} 45. Rd1 {[%emt 0:00:32]} Bc4 {[%emt 0:00:27]} 46. Ra1 {[%emt 0:00:26]} Bd5 {[%emt 0:00:26]} 47. Ra7+ {[%emt 0:00:38]} Ke8 {[%emt 0:00:13]} 48. Rc7 {[%emt 0:01:24]} Ba2 {[%emt 0:00:58]} 49. Kg2 {[%emt 0:01:21]} Bd5+ {[%emt 0:00:11]} 50. Kf1 {[%emt 0:00:31]} Nb4 {[%emt 0:00:46]} 51. Ke2 {[%emt 0:00:38]} Na6 {[%emt 0:00:27]} 52. Ra7 {[%emt 0:00:28]} Nb4 {[%emt 0:00:34]} 53. Ke3 {[%emt 0:00:28]} Nc6 {[%emt 0:00:22]} 54. Ra8+ {[%emt 0:01:43]} Ke7 {[%emt 0:00:16]} 55. Ra6 {[%emt 0:01:29]} Nb8 {[%emt 0:00:54]} 56. Ra7+ {[%emt 0:00:08]} Ke8 {[%emt 0:00:30]} 57. g4 {[%emt 0:00:10]} Nc6 {[%emt 0:00:18]} 58. Ra6 {[%emt 0:01:03] Black must now prevent h5.} Nb4 {[%emt 0:00:37]} 59. Ra5 {[%emt 0:00:29]} Bc4 {[%emt 0:00:38]} 60. Ra4 {[%emt 0:00:36]} Nc2+ {[%emt 0:00:29]} 61. Kd2 {[%emt 0:00:14]} Bb3 {[%emt 0:00:26]} 62. Ra8+ {[%emt 0:00:31]} Ke7 {[%emt 0:00:30]} 63. Kc3 {[%emt 0:00:16]} Bd5 {[%emt 0:00:36]} 64. Ra7+ {[%emt 0:00:07] Weighted Error Value: White=0.15 (very precise) /Black=0.41} 1-0

[Event "21st IPCA World Championship 2022"]
[Site "Ashdod"]
[Date "2022.05.13"]
[Round "5.3"]
[White "Zilberman, Yaacov"]
[Black "Mikheev, Stanislav"]
[Result "1/2-1/2"]
[ECO "D94"]
[WhiteElo "2315"]
[BlackElo "2333"]
[Annotator "TA"]
[PlyCount "102"]
[EventDate "2022.05.09"]
[EventType "swiss"]
[EventCountry "ISR"]
[SourceTitle "playchess.com"]
[Source "ChessBase"]
[SourceQuality "1"]
[TimeControl "5400+30"]

{[%evp 13,102,16,20,8,11,4,0,6,13,9,2,0,0,-20,-14,-12,-14,-20,0,0,0,-6,-10,-11,-17,-21,-23,-56,-20,-6,0,0,14,24,37,30,160,160,160,156,149,145,146,85,72,74,85,87,100,97,93,100,107,89,105,90,130,115,232,113,243,254,228,225,252,252,235,212,250,232,273,273,273,236,386,273,273,273,273,236,236,236,645,644,492,0,273,0,359,0,235]} 1. d4 {[%emt 0:00:13]} Nf6 {[%emt 0:00:13]} 2. Nf3 {[%emt 0:00:30]} g6 {[%emt 0:00:31]} 3. c4 {[%emt 0:00:28]} Bg7 {[%emt 0:00:21]} 4. Nc3 {[%emt 0:00:36]} d5 {[%emt 0:00:46]} 5. e3 {[%emt 0:00:48]} O-O {[%emt 0:00:19]} 6. Bd2 {[%emt 0:00:27]} b6 {[%emt 0:06:18] 6...e6 is a critical line.} 7. cxd5 {[%emt 0:03:55]} Nxd5 {[%emt 0:00:11]} 8. Bc4 {[%emt 0:00:17] D94: Grünfeld: 4 Nf3 Bg7 5 e3.} Bb7 {[%emt 0:02:49]} 9. O-O {[%emt 0:01:32]} e6 {[%emt 0:02:47]} 10. Rc1 {[%emt 0:01:50]} Nd7 {[%emt 0:03:01]} 11. Qe2 {[%emt 0:04:16]} c5 {[%emt 0:05:52]} 12. Rfd1 {[%emt 0:06:19]} cxd4 {[%emt 0:05:37] [#]} 13. exd4 $146 {[%emt 0:01:03]} ({Predecessor:} 13. Nxd4 Qe7 14. Nxd5 exd5 15. Ba6 Nc5 16. Bxb7 Qxb7 17. b4 Ne4 18. b5 a6 19. Bb4 {1-0 (57) Vogel,R (2165)-Linhart,W (2066) Bayern 2015}) 13... N7f6 {[%emt 0:04:28]} 14. Ne5 {[%emt 0:05:55]} Nxc3 {[%emt 0:01:36]} 15. bxc3 {[%emt 0:04:05][%cal Bb2c3,Bc3c4,Bc4c5][%mdl 32]} Nd5 {[%emt 0:03:09]} 16. Bd3 {[%emt 0:03:33]} Qd6 {[%emt 0:03:33]} 17. c4 {[%emt 0:05:31]} Ne7 {[%emt 0:03:44]} 18. Bc3 {[%emt 0:03:36]} Rac8 {[%emt 0:03:41]} 19. Qb2 {[%emt 0:06:39][%cal Od4d5]} Rfd8 {[%emt 0:05:57]} 20. Be2 {[%emt 0:04:04]} Nc6 {[%emt 0:06:46]} 21. c5 {[%emt 0:13:06]} Qc7 {[%emt 0:02:15]} 22. Nc4 $36 {[%emt 0:02:23][%mdl 2048] White has some pressure.} Ba6 {[%emt 0:09:36]} 23. Nd6 {[%emt 0:03:13]} Bxe2 {[%emt 0:00:12]} 24. Qxe2 {[%emt 0:00:17]} Rxd6 {[%emt 0:00:45]} (24... Bh6 $11 {keeps the balance.}) 25. cxd6 $16 {[%emt 0:00:17]} Qxd6 {[%emt 0:00:07][%cal Rc6d4]} 26. d5 {[%emt 0:06:30]} exd5 {[%emt 0:02:32]} 27. Bxg7 {[%emt 0:00:13]} Kxg7 {[%emt 0:00:03]} 28. h3 {[%emt 0:03:49]} ({Better is} 28. Qb5 $1) 28... Rd8 {[%emt 0:03:41] [#]} 29. Qc2 $1 {[%emt 0:02:35]} Ne7 {[%emt 0:03:02]} 30. Qc7 {[%emt 0:02:40]} Rd7 {[%emt 0:03:08]} 31. Qxd6 {[%emt 0:01:29]} Rxd6 {[%emt 0:00:01][%mdl 4096] Endgame KRR-KRN} 32. Rc7 {[%emt 0:00:35][%csl LRa7,LRe7]} Nc6 {[%emt 0:00:26]} 33. Rc1 {[%emt 0:00:39][%mdl 1024] White has strong compensation.} Nd4 {[%emt 0:00:22] Hoping for ...Ne2+.} 34. Kf1 {[%emt 0:00:41] Against Ne2} Nb5 {[%emt 0:07:50]} 35. R7c6 {[%emt 0:00:24]} Rf6 {[%emt 0:03:29]} (35... Rd7 $16) 36. a4 {[%emt 0:06:16]} (36. Rxf6 $18 {and the rest is easy.} Kxf6 37. a4) 36... Nd4 {[%emt 0:02:31] [#]} (36... Nd6 $16) 37. Rxf6 $1 $18 {[%emt 0:01:32]} Kxf6 {[%emt 0:00:01] KR-KN} 38. Rc7 {[%emt 0:00:30]} Nb3 {[%emt 0:04:38]} 39. Rxa7 {[%emt 0:00:38]} Nc5 {[%emt 0:00:48]} 40. Ke2 {[%emt 0:01:49]} Ke6 {[%emt 0:00:08]} 41. g4 {[%emt 0:01:04]} h6 {[%emt 0:01:10]} 42. f4 {[%emt 0:01:03]} d4 {[%emt 0:00:18]} 43. Kd2 {[%emt 0:01:26]} h5 {[%emt 0:01:33]} (43... Kf6 {was called for.} 44. Rc7 Nxa4 45. Rc6+ Ke7) 44. Ke2 {[%emt 0:01:44]} hxg4 {[%emt 0:00:06]} 45. hxg4 {[%emt 0:00:06] Threatens to win with g5.} Kf6 {[%emt 0:00:44]} 46. Ra8 {[%emt 0:00:39]} Ke6 {[%emt 0:00:49]} 47. Kf3 {[%emt 0:00:26]} Kd5 $2 {[%emt 0:00:18]} (47... Ke7 48. Ra7+ Kf6) 48. Ra7 {[%emt 0:00:31]} Ke6 {[%emt 0:00:10]} 49. Ke2 {[%emt 0:01:04]} (49. g5 $142 {Ke2 is the strong threat.} d3 50. Ke3) 49... Kf6 $1 {[%emt 0:00:05]} 50. Kf3 {[%emt 0:00:51]} Ke6 {[%emt 0:00:06]} 51. Ke2 {[%emt 0:00:32] aiming for g5.} Kf6 $1 {[%emt 0:00:09] Weighted Error Value: White=0.34/Black=0.30} 1/2-1/2

[Event "21st IPCA World Championship 2022"]
[Site "Ashdod"]
[Date "2022.05.13"]
[Round "5.4"]
[White "Campos, Eugenio"]
[Black "Gerasimova, Svetlana"]
[Result "1-0"]
[ECO "B31"]
[WhiteElo "2247"]
[BlackElo "1906"]
[Annotator "TA"]
[PlyCount "55"]
[EventDate "2022.05.09"]
[EventType "swiss"]
[EventCountry "ISR"]
[SourceTitle "playchess.com"]
[Source "ChessBase"]
[SourceQuality "1"]
[TimeControl "5400+30"]

{[%evp 12,55,9,0,37,34,60,65,70,64,45,50,63,31,64,18,84,83,78,60,67,60,80,99,108,66,103,74,265,275,466,473,453,453,459,457,812,809,856,858,867,858,804,737,698,695]} 1. e4 {[%emt 0:00:03]} c5 {[%emt 0:00:09]} 2. Nf3 {[%emt 0:00:10]} Nc6 {[%emt 0:00:07]} 3. Bb5 {[%emt 0:00:16]} g6 {[%emt 0:00:12]} 4. O-O {[%emt 0:01:21]} Bg7 {[%emt 0:00:11]} 5. c3 {[%emt 0:00:11]} e5 {[%emt 0:01:14]} 6. d3 {[%emt 0:00:57]} Nge7 {[%emt 0:01:13]} 7. Be3 {[%emt 0:00:22]} b6 {[%emt 0:01:31] B31: Sicilian: 2...Nc6 3 Bb5 g6.} 8. d4 {[%emt 0:00:35]} cxd4 {[%emt 0:00:59]} 9. cxd4 {[%emt 0:00:08]} exd4 {[%emt 0:01:01] White is slightly better.} 10. Nxd4 {[%emt 0:00:09]} O-O {[%emt 0:00:28]} 11. Nc3 {[%emt 0:00:10]} Bb7 {[%emt 0:10:43]} 12. Rc1 {[%emt 0:00:23] [#]} Rc8 $146 {[%emt 0:01:14]} ({Predecessor:} 12... a6 13. Ba4 b5 14. Bb3 Na5 15. Qg4 Nxb3 16. Nxb3 Nc6 17. Rfd1 Ne5 18. Qh3 d6 {½-½ (43) Golecki,J (1957)-Wolanski,M (1920) Suwalki 2017}) 13. Qd2 {[%emt 0:01:54] White is more active.} (13. Nf3 $14) 13... Ne5 {[%emt 0:02:34]} (13... a6 $11 {remains equal.} 14. Be2 d5) 14. Qe2 {[%emt 0:03:17]} (14. Bh6 {keeps more tension.} Bxh6 15. Qxh6 a6 16. Be2) 14... f5 {[%emt 0:04:05]} 15. exf5 {[%emt 0:02:32]} (15. f4 {is interesting.} Ng4 16. e5 g5 17. Rcd1) 15... Nxf5 {[%emt 0:02:51]} 16. Nxf5 {[%emt 0:03:09]} Rxf5 {[%emt 0:00:56]} 17. f4 {[%emt 0:01:00]} Nc6 {[%emt 0:02:04]} 18. Rfd1 {[%emt 0:00:56] Inhibits Nd4.} Qe7 {[%emt 0:20:13]} 19. Nd5 $36 {[%emt 0:01:16][%mdl 2048] White is really pushing.} Qe4 {[%emt 0:02:39] [#] This move loses the game for Black.} (19... Qe8 $16 {was worth a try.}) 20. Bd3 $1 $18 {[%emt 0:02:02][%cal Bb5d3,Bd3e4,Be4f5][%mdl 32]} Nd4 $2 {[%emt 0:06:05]} (20... Qxd5 $2 21. Bc4 Ne7 22. Bxd5+ $18) (20... Qe6) 21. Rxc8+ {[%emt 0:00:58] White is clearly winning.} ({Inferior is} 21. Bxe4 Nxe2+ 22. Kf1 Rxc1 23. Bxc1 Nxc1 24. Ne7+ Kf8 25. Nxf5 Bxe4 26. Nxg7 Nd3 $14) 21... Bxc8 {[%emt 0:00:04]} 22. Bxe4 {[%emt 0:00:14]} Nxe2+ {[%emt 0:00:14]} 23. Kf2 {[%emt 0:00:08]} Ba6 {[%emt 0:02:34]} (23... Rf7 $142 24. Kxe2 Bxb2) 24. Ne7+ {[%emt 0:00:34]} Kf7 {[%emt 0:00:20]} 25. Nxf5 {[%emt 0:00:09]} gxf5 {[%emt 0:00:07]} 26. Bxf5 {[%emt 0:00:20]} Bxb2 {[%emt 0:00:22]} 27. Rd2 {[%emt 0:01:39]} Nc3 {[%emt 0:01:34]} 28. Rxd7+ {[%emt 0:00:11] Weighted Error Value: White=0.10 (very precise) /Black=0.56} 1-0